[Event "Superbet Rapid Poland 2022"]
[Site "Warsaw"]
[Date "2022.05.20"]
[Round "5.5"]
[White "Caruana, Fabiano"]
[Black "Rapport, Richard"]
[Result "0-1"]
[ECO "C18"]
[WhiteElo "2786"]
[BlackElo "2776"]
[Annotator "TA"]
[PlyCount "140"]
[EventDate "2022.05.19"]
[EventType "tourn"]
[EventCountry "POL"]
[SourceTitle "playchess.com"]
[Source "ChessBase"]
[SourceQuality "1"]
[TimeControl "1500+10"]

{[%evp 15,140,39,34,38,38,32,34,31,31,28,25,25,28,14,32,22,22,23,25,25,30,18,25,24,24,24,39,24,29,0,6,0,0,0,0,-24,-24,-24,-24,-24,-24,-24,0,0,0,0,0,0,0,0,0,0,0,0,0,0,0,0,0,0,0,0,0,0,0,0,0,0,9,0,0,0,0,0,0,0,0,0,0,0,0,0,0,0,0,0,0,0,0,0,0,0,0,0,0,0,0,0,0,0,0,0,5,10,36,-90,-90,-90,-90,-90,-90,-93,-101,-115,-115,-134,-124,-2058,-1781,-1716,-1171,-4714,-1712,-4622,-2265,-1417,-867]} 1. e4 {[%emt 0:00:03]} e6 {[%emt 0:00:03]} 2. d4 {[%emt 0:00:01]} d5 {[%emt 0:00:02]} 3. Nc3 {[%emt 0:00:02]} Bb4 {[%emt 0:00:02]} 4. e5 {[%emt 0:00:02]} c5 {[%emt 0:00:02]} 5. a3 {[%emt 0:00:02]} Bxc3+ {[%emt 0:00:02]} 6. bxc3 {[%emt 0:00:02]} Qc7 {[%emt 0:00:02]} 7. Qg4 {[%emt 0:00:14]} f6 {[%emt 0:00:06]} 8. Nf3 {[%emt 0:00:18]} c4 {[%emt 0:00:02]} 9. Qh5+ {[%emt 0:00:17] C18: French: 3 Nc3 Bb4: Main line: 7 h4 and 7 Qg4.} Qf7 {[%emt 0:00:10]} 10. Qxf7+ {[%emt 0:00:03]} Kxf7 {[%emt 0:00:02] [#]} 11. g4 $146 {[%emt 0:00:40] White is slightly better.} ({Predecessor:} 11. Be2 Nc6 12. O-O Nge7 13. exf6 gxf6 14. Re1 Bd7 15. h3 b5 16. Nh4 a5 17. Bg4 {0-1 (40) Meinczinger,T (1200)-Poblete,L (1204) IECG email 2001}) 11... Bd7 {[%emt 0:00:45]} 12. Bf4 {[%emt 0:04:05]} Nc6 {[%emt 0:00:59]} 13. h4 {[%emt 0:05:19]} h5 {[%emt 0:02:14]} 14. gxh5 {[%emt 0:00:15]} Rxh5 {[%emt 0:01:18] Threatens to win with ...Rf5.} 15. Be2 {[%emt 0:00:04]} Rh7 {[%emt 0:00:15]} 16. Kd2 {[%emt 0:01:51]} Nce7 {[%emt 0:00:58]} 17. h5 {[%emt 0:01:05]} Nf5 {[%emt 0:00:04]} 18. Rag1 {[%emt 0:00:43]} Nge7 {[%emt 0:02:30]} 19. Nh2 {[%emt 0:05:49]} Rah8 {[%emt 0:03:41]} 20. Ng4 {[%emt 0:00:04][%cal Oh5h6]} Be8 {[%emt 0:00:34]} (20... Rxh5 $2 21. Rxh5 Rxh5 22. exf6 $18 (22. Nxf6 Rh4 $11)) 21. Rh2 {[%emt 0:02:34][%cal Oh5h6]} Ng8 {[%emt 0:02:26]} (21... Rxh5 $2 22. Rxh5 Rxh5 23. exf6 (23. Nxf6 Rh4 $11) 23... gxf6 {[#]} 24. Nxf6 $1 $18 {[%mdl 512]} (24. Ne5+ Kf8 $16)) 22. Ne3 {[%emt 0:01:12]} Nxe3 {[%emt 0:00:23]} 23. fxe3 {[%emt 0:00:55]} f5 {[%emt 0:00:42]} 24. Rhg2 {[%emt 0:00:44]} Kf8 {[%emt 0:00:52]} 25. Kc1 {[%emt 0:01:12]} Bxh5 {[%emt 0:02:13]} 26. Bxh5 {[%emt 0:00:01]} Rxh5 {[%emt 0:00:01]} 27. Rxg7 {[%emt 0:00:02]} Ne7 {[%emt 0:00:03]} 28. Kb2 {[%emt 0:00:17]} Rg8 {[%emt 0:01:14]} (28... R8h7 $5 {[%cal Rh7g7]} 29. Rxh7 Rxh7 $15) 29. Rxg8+ {[%emt 0:00:17]} Nxg8 $11 {[%emt 0:00:02][%mdl 4096] Endgame KRB-KRN} 30. a4 {[%emt 0:00:16]} Ne7 {[%emt 0:01:12]} 31. Ka3 {[%emt 0:00:02]} Nc6 {[%emt 0:00:12]} 32. Rg6 {[%emt 0:00:40]} Kf7 {[%emt 0:00:03]} 33. Rf6+ {[%emt 0:00:01]} Ke7 {[%emt 0:00:01]} 34. Bh6 {[%emt 0:00:15]} Rh2 {[%emt 0:00:07]} 35. Kb2 {[%emt 0:00:11]} Rg2 {[%emt 0:00:19]} 36. Bf8+ {[%emt 0:00:33]} Kd7 {[%emt 0:00:02]} 37. Bd6 {[%emt 0:00:25] And now Rf7+ would win.} Rg7 {[%emt 0:00:17] Inhibits Rf7+.} 38. Rf8 {[%emt 0:00:02]} Nd8 {[%emt 0:00:44]} 39. Bc5 {[%emt 0:00:20]} b6 {[%emt 0:00:23]} 40. Bd6 {[%emt 0:00:01]} Rg3 {[%emt 0:01:14]} 41. Bb8 {[%emt 0:00:27]} Nc6 {[%emt 0:00:27]} (41... Rxe3 42. Bxa7 Kc7 43. Rh8 $16) 42. Bd6 {[%emt 0:00:03] Black must now prevent Rf7+.} Nd8 {[%emt 0:00:56] Against Rf7+} (42... Rxe3 $2 43. Rf7+ Ke8 44. Rc7 $18) 43. Bb8 {[%emt 0:00:01]} a5 {[%emt 0:01:46]} (43... Rxe3 44. Bxa7 Kc7 45. Rh8 $16) 44. Ba7 {[%emt 0:00:04]} Rxe3 {[%emt 0:00:01]} 45. Bxb6 {[%emt 0:00:02]} Nb7 {[%emt 0:00:01]} 46. Rf7+ {[%emt 0:00:20]} Kc6 {[%emt 0:00:01]} 47. Ba7 {[%emt 0:00:19]} Rg3 {[%emt 0:00:24]} 48. Rf6 {[%emt 0:00:11]} Nd8 {[%emt 0:00:11]} 49. Bc5 {[%emt 0:00:06]} Rg7 {[%emt 0:00:03] Against Be7} 50. Rf8 {[%emt 0:00:13]} Nb7 {[%emt 0:00:48]} 51. Ba3 {[%emt 0:00:10]} Kd7 {[%emt 0:00:04]} 52. Kc1 {[%emt 0:00:14]} Nd8 {[%emt 0:00:04]} 53. Bc5 {[%emt 0:00:06]} Rf7 {[%emt 0:00:04]} 54. Rh8 {[%emt 0:00:32]} f4 {[%emt 0:00:07][%cal Bf5f4,Bf4f3,Bf3f2][%mdl 32]} 55. Kd2 {[%emt 0:00:01]} f3 {[%emt 0:00:02] Strongly threatening ...f2.} 56. Ke1 {[%emt 0:00:07]} f2+ {[%emt 0:00:01]} 57. Kf1 {[%emt 0:00:01]} Rf3 {[%emt 0:00:04]} 58. Rh7+ {[%emt 0:00:18]} Kc6 {[%emt 0:00:39]} 59. Be7 {[%emt 0:00:16]} Nf7 {[%emt 0:01:16]} 60. Bf6 {[%emt 0:00:05] [#]} (60. Bh4 $14 {stays ahead.}) 60... Nd6 $1 $17 {[%emt 0:00:03]} 61. exd6 {[%emt 0:00:25] White threatens d7 and mate.} Rxf6 {[%emt 0:00:01] KR-KR} 62. Ra7 {[%emt 0:00:09]} Kxd6 {[%emt 0:00:04] Hoping for ...Rf3.} 63. Ra6+ {[%emt 0:00:08]} Kc7 {[%emt 0:00:18]} 64. Rxa5 {[%emt 0:00:14]} Rf3 {[%emt 0:00:02]} 65. Rc5+ {[%emt 0:00:10]} Kb7 {[%emt 0:00:23] Black is more active.} 66. a5 $2 {[%emt 0:00:01][%mdl 8192] This costs White the game.} (66. Rb5+ $17 Kc7 67. Rb2) 66... Rxc3 $19 {[%emt 0:00:55] Black is clearly winning.} 67. Kxf2 {[%emt 0:00:11]} Rxc2+ {[%emt 0:00:01]} 68. Ke3 {[%emt 0:00:01]} Rh2 {[%emt 0:00:15]} 69. Kf4 {[%emt 0:00:25]} Re2 {[%emt 0:00:02]} 70. Kg5 {[%emt 0:00:01]} Rf2 {[%emt 0:00:11] Weighted Error Value: White=0.07 (flawless) /Black=0.01 (flawless)} 0-1

[Event "Superbet Rapid Poland 2022"]
[Site "Warsaw"]
[Date "2022.05.20"]
[Round "6.1"]
[White "Korobov, Anton"]
[Black "Rapport, Richard"]
[Result "0-1"]
[ECO "E94"]
[WhiteElo "2671"]
[BlackElo "2776"]
[Annotator "TA"]
[PlyCount "162"]
[EventDate "2022.05.19"]
[EventType "tourn"]
[EventCountry "POL"]
[SourceTitle "playchess.com"]
[Source "ChessBase"]
[SourceQuality "1"]
[TimeControl "1500+10"]

{[%evp 27,162,20,35,36,35,-14,-14,-14,0,-19,-14,-10,-8,-26,-16,-18,-15,-15,-20,-22,-21,-175,-193,-187,-173,-172,-150,-148,-119,-119,-98,-106,-106,-96,-100,-93,-94,-112,-111,-110,-96,-87,-95,-102,-88,-83,-77,-137,-137,-135,-140,-235,-234,-235,-220,-220,-220,-220,-220,-220,-220,-220,-220,-220,-220,-220,-220,-220,-220,-220,-220,-220,-220,-220,-220,-220,-220,-220,-220,-812,-812,-779,-779,-446,-439,-812,-812,-812,-812,-812,-722,-812,-722,-697,-697,-1264,-1263,-1104,-817,-29957,-29958,-29949,-6324,-29962,-29964,-29974,-29975,-29975,-29976,-29976,-29972,-29971,-29968,-29982,-29983,-29984,-29982,-29986,-29985,-29985,-29984,-29984,-29983,-29983,-29980,-29980,-29981,-29983,-29984,-29985,-29986,-29986,-29986,-29987,-29985,-29985,-29984]} 1. c4 {[%emt 0:00:02]} g6 {[%emt 0:00:18]} 2. Nc3 {[%emt 0:00:25]} Bg7 {[%emt 0:00:02]} 3. Nf3 {[%emt 0:00:09]} Nf6 {[%emt 0:00:09]} 4. e4 {[%emt 0:00:06]} d6 {[%emt 0:00:01]} 5. d4 {[%emt 0:00:03]} O-O {[%emt 0:00:03]} 6. Be2 {[%emt 0:00:02]} e5 {[%emt 0:00:02]} 7. O-O {[%emt 0:00:03]} Na6 {[%emt 0:00:07]} 8. d5 {[%emt 0:00:17]} Nc5 {[%emt 0:00:11]} 9. Qc2 {[%emt 0:00:02]} a5 {[%emt 0:00:05]} 10. Bg5 {[%emt 0:00:02]} h6 {[%emt 0:00:38]} 11. Be3 {[%emt 0:00:02]} b6 {[%emt 0:00:08]} 12. Nd2 {[%emt 0:00:03]} Ng4 {[%emt 0:00:08]} 13. Bxg4 {[%emt 0:00:05]} Bxg4 {[%emt 0:00:03]} 14. a3 {[%emt 0:00:26]} Bd7 {[%emt 0:00:52]} 15. b4 {[%emt 0:00:04] E94: King's Indian: Classical: 6 Be2 e5 7 0-0: Various Black 7th moves.} Nb7 {[%emt 0:00:18]} 16. c5 {[%emt 0:00:40]} (16. Rac1 $14) 16... axb4 $11 {[%emt 0:01:32]} 17. axb4 {[%emt 0:00:01] And now c6 would win. The position is equal.} bxc5 {[%emt 0:00:18]} 18. bxc5 {[%emt 0:00:09]} Nxc5 {[%emt 0:00:07]} 19. Bxc5 {[%emt 0:00:29]} dxc5 {[%emt 0:00:03] [#]} 20. Na4 $146 {[%emt 0:01:57]} ({Predecessor:} 20. Nc4 Qg5 21. f3 Rfb8 22. Rxa8 Rxa8 23. Rb1 Bc8 24. Nb5 Qe7 25. Nba3 f5 26. Rb2 fxe4 27. fxe4 {½-½ (47) Ahman,H-Schneider,K ICCF corr 1988}) 20... c6 {[%emt 0:03:08]} 21. d6 {[%emt 0:00:59]} Be6 {[%emt 0:00:15]} 22. Qxc5 {[%emt 0:00:32]} Ra5 {[%emt 0:00:20]} 23. Qc3 {[%emt 0:02:04]} Ra7 {[%emt 0:01:43]} 24. Qxc6 $2 {[%emt 0:00:46] [#]} (24. Nc5 $11 Rxa1 25. Rxa1 Qxd6 26. Nxe6 Qxe6 27. h3) 24... Qa8 $1 $19 {[%emt 0:03:04]} 25. Qc2 {[%emt 0:00:36]} Rc8 $36 {[%emt 0:00:12][%mdl 2048] Black is in control.} 26. Qd1 {[%emt 0:00:11]} Rc6 {[%emt 0:01:49] Prevents Nb6. aiming for ...Rca6.} 27. Nb3 {[%emt 0:06:17]} ({But not} 27. Nf3 $2 Rca6 28. h3 Bd7 $19) 27... Rxa4 {[%emt 0:02:36]} 28. d7 {[%emt 0:00:10] [#]} Bxd7 {[%emt 0:01:56][%mdl 512]} 29. Rxa4 {[%emt 0:00:18]} (29. Qxd7 Rxa1) 29... Qxa4 {[%emt 0:00:02]} 30. Qxd7 {[%emt 0:00:02][%cal Ob3a5] Strongly threatening Na5!} Qxe4 {[%emt 0:00:37]} 31. Nd2 {[%emt 0:01:42]} Qc2 {[%emt 0:00:14]} 32. Nf3 {[%emt 0:00:02]} Re6 {[%emt 0:01:42] Inhibits Qe8+.} 33. h3 {[%emt 0:00:25]} Qc6 {[%emt 0:01:00]} (33... Bf8 {feels hotter.} 34. Ra1 Qc5 35. Ra8 Kg7) 34. Qxc6 {[%emt 0:00:46]} Rxc6 $17 {[%emt 0:00:02][%mdl 4096] Endgame KRB-KRN} 35. Re1 {[%emt 0:00:01]} Rc5 {[%emt 0:00:05]} 36. g4 {[%emt 0:00:22]} f5 {[%emt 0:00:34]} 37. gxf5 {[%emt 0:03:29]} (37. Nh4 $142) 37... gxf5 {[%emt 0:00:02]} 38. Nh4 {[%emt 0:01:01]} e4 {[%emt 0:00:02]} 39. Nxf5 {[%emt 0:00:56]} (39. Rd1 $17) 39... Rxf5 $19 {[%emt 0:00:02]} 40. Rxe4 $17 {[%emt 0:00:01] KRB-KR} Kf7 {[%emt 0:00:07]} 41. Kg2 {[%emt 0:00:02]} Bf8 {[%emt 0:00:10]} 42. Re3 {[%emt 0:00:02]} Rg5+ {[%emt 0:00:12]} 43. Rg3 {[%emt 0:00:02]} Ra5 {[%emt 0:00:13]} 44. Rf3+ {[%emt 0:00:04]} Kg7 {[%emt 0:00:02]} 45. Rg3+ {[%emt 0:00:03]} Kh7 {[%emt 0:00:02]} 46. Rf3 {[%emt 0:00:01]} Bg7 {[%emt 0:00:06]} 47. Rf4 {[%emt 0:00:12]} Ra2 {[%emt 0:00:07]} 48. Rf3 {[%emt 0:00:13]} Bd4 {[%emt 0:00:06]} 49. Rf4 {[%emt 0:00:03]} Ba7 {[%emt 0:00:04]} 50. Rf3 {[%emt 0:00:06]} Kg6 {[%emt 0:00:02]} 51. Rg3+ {[%emt 0:00:07]} Kh5 {[%emt 0:00:13]} 52. Rf3 {[%emt 0:00:01]} Ra5 {[%emt 0:00:48]} 53. Rg3 $2 {[%emt 0:00:24]} (53. Rf7) 53... Rg5 $19 {[%emt 0:00:57]} 54. Rg4 {[%emt 0:00:47]} Rf5 {[%emt 0:00:01]} 55. f3 {[%emt 0:00:18]} Rb5 {[%emt 0:00:45] Hoping for ...Rb2+.} 56. f4 {[%emt 0:00:18]} (56. Kg3 $142) 56... Bb8 {[%emt 0:00:49]} 57. Kg3 {[%emt 0:00:10]} Rb3+ {[%emt 0:00:29]} 58. Kg2 {[%emt 0:00:02]} Bd6 {[%emt 0:00:31]} 59. Kh2 {[%emt 0:00:02]} Rb2+ {[%emt 0:01:22]} 60. Kg3 {[%emt 0:00:05]} Be7 {[%emt 0:00:02]} 61. f5 {[%emt 0:01:22]} Bd6+ {[%emt 0:01:01]} 62. Kf3 {[%emt 0:00:01]} Rh2 {[%emt 0:00:04]} 63. Re4 {[%emt 0:00:16]} Rxh3+ {[%emt 0:00:08]} 64. Kg2 {[%emt 0:00:01]} Rd3 {[%emt 0:00:16]} (64... Rg3+ $142 65. Kh1 Rf3 66. Re6 Bc5 67. Re5 Bd4 68. Kg2 Rf4 69. Re6 Rxf5 70. Re4 Bc5 71. Kh3 Rd5 72. Rh4+ Kg5 73. Rg4+ Kf5 74. Rh4 Rd3+ 75. Kg2 Kg5 76. Rh3 Rd2+ 77. Kf3 h5 78. Rg3+ Kf5 79. Rh3 Rf2+ 80. Kg3 Kg5 81. Rh2 Rf5 82. Rg2 h4+ 83. Kh3+ Kh5 84. Rg7 Rf3+ 85. Kg2 Rd3 86. Rh7+ Kg5 87. Rg7+ Kh5 88. Rh7+ Kg4 89. Rg7+ Kf5 90. Rh7 Kg5 91. Rg7+ Kh5) 65. Re2 {[%emt 0:00:11]} Kg5 {[%emt 0:00:05] Black mates.} 66. f6 {[%emt 0:00:01]} Kxf6 {[%emt 0:00:01]} 67. Rf2+ {[%emt 0:00:04]} Kg5 {[%emt 0:00:02]} 68. Rf3 {[%emt 0:00:01]} Rd2+ {[%emt 0:00:04]} 69. Rf2 {[%emt 0:00:01]} Rd4 {[%emt 0:00:02]} 70. Re2 {[%emt 0:00:09]} Kg4 {[%emt 0:00:02]} 71. Rf2 {[%emt 0:00:40]} Bf4 {[%emt 0:00:05]} 72. Re2 {[%emt 0:00:28]} Rd3 {[%emt 0:00:05]} 73. Rf2 {[%emt 0:00:02]} Rg3+ {[%emt 0:00:34]} 74. Kh1 {[%emt 0:00:02]} Rh3+ {[%emt 0:00:01]} 75. Kg2 {[%emt 0:00:01]} Rh2+ {[%emt 0:00:04]} 76. Kg1 {[%emt 0:00:04]} Rh5 {[%emt 0:00:02]} 77. Kg2 {[%emt 0:00:03]} Bg3 {[%emt 0:00:11]} 78. Rf8 {[%emt 0:00:14]} Rh2+ {[%emt 0:00:03]} 79. Kg1 {[%emt 0:00:01]} Rd2 {[%emt 0:00:16]} 80. Rf1 {[%emt 0:00:10]} Kh3 {[%emt 0:00:08]} 81. Rb1 {[%emt 0:00:09]} Rg2+ {[%emt 0:00:06] Weighted Error Value: White=0.39/Black=0.04 (flawless)} 0-1

[Event "Superbet Rapid Poland 2022"]
[Site "Warsaw"]
[Date "2022.05.20"]
[Round "6.2"]
[White "Wojtaszek, Radoslaw"]
[Black "Caruana, Fabiano"]
[Result "1/2-1/2"]
[ECO "E08"]
[WhiteElo "2696"]
[BlackElo "2786"]
[Annotator "TA"]
[PlyCount "103"]
[EventDate "2022.05.19"]
[EventType "tourn"]
[EventCountry "POL"]
[SourceTitle "playchess.com"]
[Source "ChessBase"]
[SourceQuality "1"]
[TimeControl "1500+10"]

{[%evp 17,103,4,29,29,28,24,25,9,30,58,50,33,34,28,29,29,27,31,32,28,50,25,25,25,25,10,15,10,11,0,0,0,0,0,0,0,0,0,0,-52,-52,-52,-38,-52,-52,-52,-44,-45,-45,-38,-20,-20,0,0,0,0,0,0,0,0,13,13,70,66,69,63,70,66,54,64,47,62,64,59,92,59,74,0,0,0,0,0,0,0,0,0,0,0]} 1. d4 {[%emt 0:00:01]} Nf6 {[%emt 0:00:01]} 2. c4 {[%emt 0:00:02]} e6 {[%emt 0:00:02]} 3. Nf3 {[%emt 0:00:04]} d5 {[%emt 0:00:02]} 4. g3 {[%emt 0:00:03]} Bb4+ {[%emt 0:00:02]} 5. Bd2 {[%emt 0:00:02]} Be7 {[%emt 0:00:01]} 6. Bg2 {[%emt 0:00:06]} O-O {[%emt 0:00:03]} 7. Qc2 {[%emt 0:00:04]} Nbd7 {[%emt 0:00:15]} 8. O-O {[%emt 0:00:04]} c6 {[%emt 0:00:03]} 9. Bf4 {[%emt 0:00:10]} a5 {[%emt 0:00:03]} 10. Rd1 {[%emt 0:00:37] E08: Closed Catalan: Main Line: 7 Qc2.} a4 {[%emt 0:00:02]} 11. Ne5 {[%emt 0:01:04][%cal Bf3e5,Be5d3,Bd3b4][%mdl 32] 11.a3 is the fancy move.} Qa5 {[%emt 0:00:23] [#]} 12. Nd3 $146 {[%emt 0:01:16] White has an edge.} ({Predecessor:} 12. Nc3 a3 13. b3 Bb4 14. Rac1 Nh5 15. Bd2 Nxe5 16. dxe5 d4 17. Ne4 Bxd2 18. Qxd2 Qxe5 {½-½ (48) Markus,R (2615)-Damljanovic,B (2522) Novi Sad 2018}) 12... b6 {[%emt 0:03:58]} 13. cxd5 {[%emt 0:01:05]} cxd5 {[%emt 0:00:05]} 14. Bd2 {[%emt 0:00:02]} Qa7 {[%emt 0:00:32]} 15. Bb4 {[%emt 0:00:02]} Bxb4 {[%emt 0:01:11]} 16. Nxb4 {[%emt 0:00:03]} Bb7 {[%emt 0:00:01]} 17. a3 {[%emt 0:00:54]} Rfc8 {[%emt 0:00:03]} 18. Nc3 {[%emt 0:00:30]} Qa5 {[%emt 0:01:40]} 19. Rac1 {[%emt 0:00:15]} Nb8 {[%emt 0:04:22]} 20. Qd2 {[%emt 0:01:13][%cal Oe2e4]} Nc6 {[%emt 0:00:18]} 21. Nca2 {[%emt 0:00:41]} Nxb4 {[%emt 0:02:40]} 22. Nxb4 {[%emt 0:00:23]} Ba6 {[%emt 0:00:18]} 23. Rxc8+ {[%emt 0:06:24]} Rxc8 {[%emt 0:00:12]} 24. Rc1 {[%emt 0:00:03]} Bc4 {[%emt 0:00:25]} 25. f3 {[%emt 0:00:01]} b5 {[%emt 0:00:30]} 26. e4 {[%emt 0:02:23]} dxe4 {[%emt 0:01:43]} 27. fxe4 {[%emt 0:00:02]} Rd8 {[%emt 0:00:28] aiming for ...Qb6.} 28. Kh1 {[%emt 0:04:49]} (28. Qf2 $11) 28... Qb6 $15 {[%emt 0:00:22]} 29. d5 {[%emt 0:00:02]} Ng4 {[%emt 0:04:13] [#] White must now prevent ...Nf2+.} 30. Bf3 {[%emt 0:00:24]} Ne5 {[%emt 0:00:29]} 31. Bg2 {[%emt 0:00:03]} Qd6 {[%emt 0:00:34]} 32. Qf4 {[%emt 0:00:45]} Re8 {[%emt 0:01:17]} 33. h3 {[%emt 0:00:44]} g6 {[%emt 0:00:48]} 34. Kh2 {[%emt 0:00:36]} Kg7 {[%emt 0:00:06]} 35. Nc6 {[%emt 0:01:40][%cal Bb4c6,Bc6d4,Bd4e6][%mdl 32]} exd5 {[%emt 0:01:43]} 36. exd5 {[%emt 0:00:02]} h5 {[%emt 0:00:17]} (36... Bxd5 $2 37. Qd4 $18) 37. Rc2 {[%emt 0:02:42][%cal Bc1c2,Bc2f2,Bf2f6,Bf6f7][%mdl 32]} f6 {[%emt 0:01:22]} (37... Bxd5 $2 38. Qd4 $18) 38. Nd4 {[%emt 0:00:12]} Kh7 {[%emt 0:00:40]} ({Don't take} 38... Bxd5 39. Nxb5 Qb8 40. Bxd5 $16) 39. Ne6 {[%emt 0:00:36]} ({Don't go for} 39. Nf5 $2 gxf5 40. Qxf5+ Kg7 $19) 39... Qe7 {[%emt 0:00:02]} (39... Bxd5 $2 40. Rc7+ Re7 {[#]} 41. Qxf6 $1 Qxc7 42. Nxc7 Nf3+ 43. Bxf3 $18) (39... f5 $11) 40. Be4 $14 {[%emt 0:00:38]} Rc8 {[%emt 0:00:13]} 41. Rf2 {[%emt 0:00:11]} Bd3 {[%emt 0:00:14]} 42. Bxd3 {[%emt 0:00:45]} Nxd3 {[%emt 0:00:01]} 43. Qxf6 {[%emt 0:00:01]} Qxf6 {[%emt 0:00:01]} 44. Rxf6 {[%emt 0:00:01][%mdl 4096] Endgame Hoping for d6. KRN-KRN} Rc2+ {[%emt 0:00:05]} 45. Kg1 {[%emt 0:00:03] Strongly threatening Rf7+.} Rd2 {[%emt 0:00:23]} 46. Rf7+ {[%emt 0:00:14]} Kh6 {[%emt 0:00:22]} 47. h4 {[%emt 0:00:42]} (47. Rf8 $16 {[%cal Rf8h8]} Kh7 48. d6) 47... Ne5 $11 {[%emt 0:00:01] The position is equal.} 48. Rb7 {[%emt 0:00:13] Threatens to win with Ng5.} Nf3+ {[%emt 0:00:07]} 49. Kf1 {[%emt 0:00:01]} Nh2+ {[%emt 0:00:10]} 50. Ke1 {[%emt 0:00:01]} Nf3+ {[%emt 0:00:01]} 51. Kf1 {[%emt 0:00:00]} Nh2+ {[%emt 0:00:01]} 52. Ke1 {Weighted Error Value: White=0.08 (flawless) /Black=0.07 (flawless)} 1/2-1/2